fUSD/lending_fUSD_20250313
["ID","MTS","AMOUNT","RATE_DAILY","PERIOD"]
[356078849,1741885846460,-274.5,0.00027468,18]
[356078850,1741885846468,-1405.034983,0.00027468,18]
[356078851,1741885846477,-1405.034983,0.00027468,18]
[356078852,1741885846486,-500.0,0.00027468,18]
[356078853,1741885846495,-500.0,0.00027468,18]
[356078854,1741885846505,-566.13,0.00027468,18]
[356078855,1741885846517,-500.0,0.00027468,18]
[356078856,1741885846527,-500.0,0.00027468,18]
[356078857,1741885846541,-500.0,0.00027468,18]
[356078858,1741885846550,-500.0,0.00027468,18]
[356078859,1741885846560,-500.0,0.00027468,2]
[356078860,1741885846569,-174.747506,0.00027468,18]
[356078861,1741885846582,-500.0,0.00027468,18]
[356078862,1741885846591,-448.45,0.00027468,18]
[356078863,1741885846601,-500.0,0.00027468,18]
[356078864,1741885846612,-500.0,0.00027468,2]
[356078865,1741885846621,-500.0,0.00027468,2]
[356078866,1741885846631,-500.0,0.00027468,18]
[356078867,1741885846641,-159.519403,0.00027468,18]
[356078868,1741885846651,-500.0,0.00027468,18]
[356078869,1741885846661,-500.0,0.00027468,18]
[356078870,1741885846671,-500.0,0.00027468,18]
[356078871,1741885846680,-500.0,0.00027468,18]
[356078872,1741885846689,-500.0,0.00027468,18]
[356078873,1741885846699,-500.0,0.00027468,18]
[356078874,1741885846710,-500.0,0.00027468,18]
[356078875,1741885846720,-500.0,0.00027468,18]
[356078877,1741885846729,-500.0,0.00027468,18]
[356078879,1741885846739,-500.0,0.00027468,18]
[356078881,1741885846748,-500.0,0.00027468,18]
[356078883,1741885846758,-83.5320245,0.00027468,18]
[356078885,1741885846776,-416.4679755,0.00027468,18]
[356078886,1741885846785,-500.0,0.00027468,18]
[356078887,1741885846795,-83.5320245,0.00027468,18]
[356078888,1741885846807,-183.9379755,0.00027468,18]
[356078889,1741885846816,-500.0,0.00027468,18]
[356078890,1741885846826,-53375.9221268,0.00027468,3]
[356078891,1741885846835,-10675.1844254,0.00027469,3]
[356078892,1741885846844,-138777.39753,0.00027469,3]
[356078893,1741885846855,-151.52,0.00027469,2]
[356078894,1741885846865,-893.06,0.00027472,2]
[356078895,1741885846875,-414.42780242,0.00027478,2]
[356078896,1741885846884,-500.0,0.00027478,2]
[356078897,1741885846894,-500.0,0.00027478,2]
[356078898,1741885846903,-500.0,0.00027478,2]
[356078899,1741885846913,-500.0,0.00027478,2]
[356078900,1741885846922,-222.09939587,0.00027478,2]
[356078901,1741885846931,-500.0,0.00027478,18]
[356078902,1741885846941,-500.0,0.00027478,18]
[356078903,1741885846950,-502.98,0.00027478,18]
[356078904,1741885846959,-500.0,0.00027478,18]
[356078905,1741885846969,-500.0,0.00027478,18]
[356078906,1741885846977,-500.0,0.00027478,18]
[356078907,1741885846987,-500.0,0.00027478,18]
[356078908,1741885846996,-500.0,0.00027478,18]
[356078909,1741885847005,-500.0,0.00027478,18]
[356078910,1741885847017,-500.0,0.00027478,18]
[356078911,1741885847026,-500.0,0.00027478,18]
[356078912,1741885847036,-500.0,0.00027478,18]
[356078913,1741885847045,-500.0,0.00027478,18]
[356078914,1741885847055,-500.0,0.00027478,18]
[356078915,1741885847065,-521.91,0.00027478,18]
[356078916,1741885847074,-500.0,0.00027478,18]
[356078917,1741885847084,-500.0,0.00027478,18]
[356078918,1741885847095,-500.0,0.00027478,18]
[356078919,1741885847104,-500.0,0.00027478,18]
[356078920,1741885847114,-535.08,0.00027478,18]
[356078921,1741885847124,-500.0,0.00027478,18]
[356078922,1741885847133,-469.05,0.00027478,18]
[356078923,1741885847143,-500.0,0.00027478,18]
[356078924,1741885847152,-500.0,0.00027478,18]
[356078925,1741885847161,-312.03,0.00027478,18]
[356078926,1741885847170,-645.76,0.00027478,18]
[356078927,1741885847179,-500.0,0.00027478,18]
[356078928,1741885847189,-500.0,0.00027478,18]
[356078929,1741885847198,-516.73,0.00027478,18]
[356078930,1741885847207,-500.0,0.00027478,18]
[356078931,1741885847216,-500.0,0.00027478,18]
[356078932,1741885847225,-163.13,0.00027478,18]
[356078933,1741885847235,-500.0,0.00027478,18]
[356078934,1741885847244,-276.19,0.00027478,18]
[356078935,1741885847254,-500.0,0.00027478,18]
[356078936,1741885847265,-500.0,0.00027478,18]
[356078937,1741885847274,-500.0,0.00027478,18]
[356078938,1741885847284,-335.97784347,0.00027478,18]
[356078939,1741885847293,-500.0,0.00027478,18]
[356078940,1741885847302,-500.0,0.00027478,18]
[356078941,1741885847311,-500.0,0.00027478,18]
[356078942,1741885847321,-500.0,0.00027478,18]
[356078943,1741885847330,-500.0,0.00027478,18]
[356078944,1741885847339,-471.57,0.00027478,18]
[356078945,1741885847348,-589.24,0.00027478,18]
[356078946,1741885847357,-500.0,0.00027478,18]
[356078947,1741885847366,-500.0,0.00027478,18]
[356078948,1741885847375,-500.0,0.00027478,18]
[356078949,1741885847384,-500.0,0.00027478,18]
[356078950,1741885847394,-500.0,0.00027478,18]
[356078951,1741885847403,-500.0,0.00027478,18]
[356078952,1741885847412,-201.33,0.00027478,18]
[356078953,1741885847422,-500.0,0.00027478,18]
[356078954,1741885847431,-500.0,0.00027478,18]
[356078955,1741885847440,-249.08,0.00027478,18]
[356078956,1741885847449,-500.0,0.00027478,18]
[356078957,1741885847458,-500.0,0.00027478,18]
[356078958,1741885847467,-500.0,0.00027478,18]
[356078959,1741885847476,-500.0,0.00027478,18]
[356078960,1741885847486,-556.26,0.00027478,18]
[356078961,1741885847495,-471.81,0.00027478,18]
[356078962,1741885847504,-393.65,0.00027478,18]
[356078963,1741885847515,-500.0,0.00027478,18]
[356078964,1741885847525,-500.0,0.00027478,18]
[356078965,1741885847536,-500.0,0.00027478,18]
[356078966,1741885847545,-500.0,0.00027478,18]
[356078967,1741885847555,-238.15,0.00027478,18]
[356078968,1741885847564,-500.0,0.00027478,18]
[356078969,1741885847575,-500.0,0.00027478,18]
[356078970,1741885847585,-500.0,0.00027478,18]
[356078971,1741885847593,-468.51,0.00027478,18]
[356078972,1741885847605,-500.0,0.00027478,18]
[356078973,1741885847615,-500.0,0.00027478,18]
[356078974,1741885847624,-620.79,0.00027478,18]
[356078975,1741885847634,-500.0,0.00027478,18]
[356078976,1741885847644,-500.0,0.00027478,18]
[356078977,1741885847653,-500.0,0.00027478,18]
[356078978,1741885847663,-353.62,0.00027478,18]
[356078979,1741885847672,-500.0,0.00027478,18]
[356078980,1741885847681,-500.0,0.00027478,18]
[356078981,1741885847692,-529.15,0.00027478,18]
[356078982,1741885847701,-500.0,0.00027478,18]
[356078983,1741885847711,-500.0,0.00027478,18]
[356078984,1741885847721,-554.14,0.00027478,18]
[356078985,1741885847731,-335.34,0.00027478,18]
[356078986,1741885847740,-500.0,0.00027478,18]
[356078987,1741885847750,-500.0,0.00027478,18]
[356078988,1741885847759,-500.0,0.00027478,18]
[356078989,1741885847770,-433.78,0.00027478,18]
[356078990,1741885847779,-332.55,0.00027478,18]
[356078991,1741885847788,-500.0,0.00027478,18]
[356078992,1741885847798,-399.96,0.00027478,18]
[356078993,1741885847807,-500.0,0.00027478,18]
[356078994,1741885847818,-223.32,0.00027478,18]
[356078995,1741885847827,-500.0,0.00027478,18]
[356078996,1741885847837,-500.0,0.00027478,18]
[356078997,1741885847847,-500.0,0.00027478,18]
[356078998,1741885847859,-500.0,0.00027478,18]
[356078999,1741885847869,-500.0,0.00027478,18]
[356079000,1741885847878,-500.0,0.00027478,18]
[356079001,1741885847888,-500.0,0.00027478,18]
[356079002,1741885847897,-500.0,0.00027478,18]
[356079003,1741885847907,-500.0,0.00027478,18]
[356079004,1741885847916,-351.35,0.00027478,18]
[356079005,1741885847925,-500.0,0.00027478,18]
[356079006,1741885847935,-500.0,0.00027478,18]
[356079007,1741885847944,-500.0,0.00027478,18]
[356079008,1741885847954,-592.13,0.00027478,18]
[356079009,1741885847964,-500.0,0.00027478,18]
[356079010,1741885847973,-500.0,0.00027478,18]
[356079011,1741885847982,-500.0,0.00027478,18]
[356079012,1741885847992,-500.0,0.00027478,18]
[356079013,1741885848002,-306.21,0.00027478,18]
[356079014,1741885848012,-500.0,0.00027478,18]
[356079015,1741885848021,-318.8,0.00027478,18]
[356079016,1741885848031,-500.0,0.00027478,18]
[356079017,1741885848042,-500.0,0.00027478,18]
[356079018,1741885848051,-407.02,0.00027478,18]
[356079019,1741885848061,-500.0,0.00027478,18]
[356079020,1741885848070,-500.0,0.00027478,18]
[356079021,1741885848079,-612.44,0.00027478,18]
[356079022,1741885848089,-548.83,0.00027478,18]
[356079023,1741885848098,-500.0,0.00027478,18]
[356079024,1741885848108,-500.0,0.00027478,18]
[356079025,1741885848117,-500.0,0.00027478,18]
[356079026,1741885848127,-500.0,0.00027478,18]
[356079027,1741885848137,-500.0,0.00027478,18]
[356079028,1741885848146,-633.08,0.00027478,18]
[356079029,1741885848164,-356.29,0.00027478,18]
[356079030,1741885848176,-500.0,0.00027478,18]
[356079031,1741885848189,-462.65,0.00027478,18]
[356079032,1741885848200,-500.0,0.00027478,18]
[356079033,1741885848213,-500.0,0.00027478,18]
[356079034,1741885848225,-418.45,0.00027478,18]
[356079035,1741885848237,-230.30397814,0.00027478,18]
[356079036,1741885848247,-500.0,0.00027478,18]
[356079037,1741885848257,-434.07,0.00027478,18]
[356079038,1741885848268,-500.0,0.00027478,18]
[356079039,1741885848278,-500.0,0.00027478,18]
[356079040,1741885848289,-551.09,0.00027478,18]
[356079041,1741885848300,-500.0,0.00027478,18]
[356079042,1741885848311,-500.0,0.00027478,18]
[356079043,1741885848322,-197.01,0.00027478,18]
[356079044,1741885848333,-500.0,0.00027478,18]
[356079045,1741885848344,-229.54,0.00027478,18]
[356079046,1741885848355,-500.0,0.00027478,2]
[356079047,1741885848365,-500.0,0.00027478,2]
[356079048,1741885848376,-500.0,0.00027478,2]
[356079049,1741885848386,-227.9,0.00027478,2]
[356079050,1741885848398,-638.01,0.00027478,18]
[356079051,1741885848408,-500.0,0.00027478,18]
[356079052,1741885848419,-500.0,0.00027478,18]
[356079053,1741885848430,-500.0,0.00027478,18]
[356079054,1741885848442,-181.3,0.00027478,18]
[356079055,1741885848453,-500.0,0.00027478,18]
[356079056,1741885848464,-305.35,0.00027478,18]
[356079057,1741885848474,-500.0,0.00027478,18]
[356079058,1741885848486,-624.76,0.00027478,18]
[356079059,1741885848496,-500.0,0.00027478,18]
[356079060,1741885848507,-500.0,0.00027478,18]
[356079061,1741885848518,-500.0,0.00027478,18]
[356079062,1741885848529,-500.0,0.00027478,18]
[356079063,1741885848543,-500.0,0.00027478,18]
[356079064,1741885848554,-500.0,0.00027478,18]
[356079065,1741885848567,-500.0,0.00027478,18]
[356079066,1741885848578,-636.0,0.00027478,18]
[356079067,1741885848589,-500.0,0.00027478,18]
[356079068,1741885848600,-500.0,0.00027478,18]
[356079069,1741885848613,-500.0,0.00027478,18]
[356079070,1741885848623,-624.2,0.00027478,18]
[356079071,1741885848633,-500.0,0.00027478,18]
[356079072,1741885848645,-500.0,0.00027478,18]
[356079073,1741885848655,-193.18,0.00027478,18]
[356079074,1741885848666,-500.0,0.00027478,18]
[356079075,1741885848677,-332.72,0.00027478,18]
[356079076,1741885848687,-500.0,0.00027478,18]
[356079077,1741885848699,-500.0,0.00027478,18]
[356079078,1741885848710,-500.0,0.00027478,18]
[356079079,1741885848721,-500.0,0.00027478,18]
[356079080,1741885848732,-500.0,0.00027478,18]
[356079081,1741885848743,-244.93,0.00027478,18]
[356079082,1741885848754,-168.25,0.00027478,18]
[356079083,1741885848767,-500.0,0.00027478,18]
[356079084,1741885848778,-500.0,0.00027478,18]
[356079085,1741885848789,-500.0,0.00027478,18]
[356079086,1741885848799,-500.0,0.00027478,18]
[356079087,1741885848810,-500.0,0.00027478,18]
[356079088,1741885848821,-500.0,0.00027478,18]
[356079089,1741885848831,-223.48,0.00027478,18]
[356079090,1741885848842,-500.0,0.00027478,18]
[356079091,1741885848852,-440.66,0.00027478,18]
[356079092,1741885848863,-193.86666547,0.00027479,15]
[356079093,1741885848874,-40389.98779538,0.00027479,21]
[356079094,1741885848885,-182.68164427,0.00027479,2]
[356079095,1741885848896,-122800.53281528,0.00027479,5]
[356079096,1741885848913,-376.87925389,0.00027479,5]
[356079097,1741885848926,-4042.424,0.00027479,5]
[356079098,1741885848944,-559.18729511,0.00027479,5]
[356079099,1741885848957,-3277.94093333,0.00027479,5]
[356079100,1741885848971,-912.0191279,0.00027479,5]
[356079101,1741885848983,-69956.65551777,0.00027479,5]
[356079102,1741885848996,-1446.27983838,0.00027479,5]
[356079109,1741886951662,-173.62,0.00020961,2]
[356079110,1741886951688,-2040.0,0.00022654,5]
[356079112,1741886951714,-711.2,0.00024349,2]
[356079113,1741886951739,-604.0,0.00025,7]
[356079114,1741886951766,-294.59,0.00026218,30]
[356079115,1741886951792,-151.61018481,0.00026356,2]
[356079116,1741886951819,-1630.03348641,0.00026453,2]
[356079117,1741886951855,-5083.26651359,0.00026453,2]
[356079119,1741886951884,-152.73,0.00026456,2]
[356079120,1741886951910,-369.05715763,0.00026544,2]
[356079121,1741886951940,-592.67692813,0.00026544,2]
[356079158,1741887031428,-1038.26591424,0.00026544,2]
[356079160,1741887031438,-152.73,0.00026603,2]
[356079163,1741887031447,-711.2,0.00026613,2]
[356079165,1741887031456,-176.09,0.00026656,2]
[356079166,1741887031466,-250.0,0.00026693,2]
[356079167,1741887031475,-1000.0,0.00026723,2]
[356079168,1741887031485,-152.73,0.0002675,2]
[356079169,1741887031494,-200.0,0.00026845,2]
[356079170,1741887031504,-687.57,0.00026849,2]
[356079171,1741887031514,-305.66,0.00026879,2]
[356079172,1741887031523,-152.73,0.00026897,2]
[356079173,1741887031533,-152.73,0.00027044,2]
[356079174,1741887031542,-152.73,0.00027191,2]
[356079175,1741887031552,-151.6101848,0.00027258,2]
[356079176,1741887031562,-551.33663526,0.00027258,12]
[356079177,1741887031571,-152.73,0.00027338,2]
[356079178,1741887031580,-150.0,0.00027357,2]
[356079179,1741887031589,-300.0,0.00027357,2]
[356079180,1741887031598,-16208.066848,0.00027358,3]
[356079181,1741887031613,-1965.5958398,0.00027358,3]
[356079182,1741887031624,-228284.99778695,0.00027358,3]
[356079183,1741887031761,-6534.62491542,0.00027358,3]
[356079195,1741887037407,-1461.68397848,0.00027358,3]
[356079196,1741887037419,-295.16028014,0.00027358,3]
[356079197,1741887037431,-283.6611126,0.00027358,3]
[356079204,1741887039655,-367.8377472,0.00027358,3]
[356079205,1741887039925,-302.34555006,0.00027358,3]
[356079217,1741887042650,-706.05178285,0.00027358,3]
[356079223,1741887045542,-803.8,0.00027358,3]
[356079224,1741887045555,-436.9999999,0.00027358,3]
[356079225,1741887045833,-302.03419666,0.00027358,3]
[356079251,1741888231663,-640.08,0.00024161,2]
[356079252,1741888231672,-500.0,0.00024976,7]
[356079253,1741888231682,-250.0,0.00025626,2]
[356079254,1741888231691,-270.04,0.00026074,30]
[356079255,1741888231700,-324.89,0.00026275,2]
[356079256,1741888231710,-324.89,0.00026344,2]
[356079257,1741888231719,-2000.0,0.00026396,2]
[356079258,1741888231727,-2000.0,0.00026411,120]
[356079259,1741888231736,-324.89,0.00026413,2]
[356079260,1741888231745,-640.08,0.00026424,2]
[356079261,1741888231754,-1000.0,0.00026451,2]
[356079262,1741888231763,-250.0,0.00026454,2]
[356079263,1741888231772,-789.32,0.00026462,120]
[356079264,1741888231781,-324.89,0.00026482,2]
[356079265,1741888231790,-1446.47,0.00026485,2]
[356079266,1741888231799,-434.8,0.000265,2]
[356079267,1741888231809,-324.89,0.00026551,2]
[356079268,1741888231818,-151.28,0.00026578,2]
[356079269,1741888231827,-500.0,0.0002662,7]
[356079270,1741888231837,-324.89,0.0002662,2]
[356079271,1741888231846,-324.89,0.0002669,2]
[356079272,1741888231855,-324.89,0.00026759,2]
[356079273,1741888231865,-324.89,0.00026828,2]
[356079274,1741888231876,-229.42,0.00026849,2]
[356079275,1741888231886,-324.89,0.00026897,2]
[356079276,1741888231895,-204.98269598,0.000269,4]
[356079277,1741888231904,-324.89,0.00026966,2]
[356079278,1741888231913,-1180.0,0.00027,7]
[356079279,1741888231923,-1000.0,0.00027,3]
[356079280,1741888231932,-856.0,0.00027,7]
[356079281,1741888231941,-324.89,0.00027035,2]
[356079282,1741888231951,-324.89,0.00027105,2]
[356079283,1741888231960,-289.23885332,0.00027117,2]
[356079284,1741888231969,-324.89,0.00027174,2]
[356079285,1741888231978,-1013.0,0.000272,6]
[356079286,1741888231988,-1000.0,0.000272,6]
[356079288,1741888231997,-1000.0,0.000272,7]
[356079290,1741888232006,-1000.0,0.000272,8]
[356079292,1741888232015,-1000.0,0.000272,4]
[356079294,1741888232024,-1000.0,0.000272,3]
[356079295,1741888232033,-1000.0,0.000272,3]
[356079297,1741888232042,-324.89,0.00027243,2]
[356079299,1741888232051,-166.59,0.00027252,2]
[356079301,1741888232063,-551.33663525,0.00027277,12]
[356079302,1741888232072,-324.89,0.00027312,2]
[356079303,1741888232082,-500.0,0.00027357,2]
[356079304,1741888232091,-155.558,0.00027357,16]
[356079305,1741888232100,-1228.43521676,0.00027357,16]
[356079306,1741888232246,-487.25378324,0.00027357,16]
[356079307,1741888232255,-161.62938,0.00027357,39]
[356079308,1741888232265,-16111.77690805,0.00027358,3]
[356079309,1741888232288,-218871.54290695,0.00027358,3]
[356079310,1741888232298,-146973.093394,0.00027358,3]
[356079311,1741888232311,-771335.45408597,0.00027368,13]
[356079312,1741888232322,-7083.15453891,0.00027368,13]
[356079313,1741888232331,-324.89,0.00027381,2]
[356079314,1741888232341,-500.0,0.00027384,2]
[356079315,1741888232350,-111.06656109,0.00027387,3]
[356079317,1741888237529,-1455.99896574,0.00027387,3]
[356079318,1741888237540,-292.89503166,0.00027387,3]
[356079319,1741888237552,-281.62171898,0.00027387,3]
[356079320,1741888237641,-9144.99999998,0.00027387,3]
[356079321,1741888237696,-40143.0888,0.00027387,3]
[356079324,1741888239722,-1609.93344,0.00027387,3]
[356079325,1741888239776,-260.72868261,0.00027387,3]
[356079326,1741888239888,-381.4453024,0.00027387,3]
[356079327,1741888239954,-303.73442774,0.00027387,3]
[356079328,1741888240808,-730.21400001,0.00027387,3]
[356079329,1741888240820,-644.57774664,0.00027387,3]
[356079358,1741888242994,-2501.38142614,0.00027387,3]
[356079360,1741888243009,-3173.20988155,0.00027387,3]
[356079390,1741888245791,-461.26872,0.00027387,3]
[356079391,1741888245849,-1176.16727092,0.00027387,3]
[356079401,1741889381219,-172.06,0.00020916,2]
[356079402,1741889381245,-576.07,0.00024101,2]
[356079403,1741889381271,-200.0,0.00024976,7]
[356079404,1741889381297,-500.0,0.00024976,7]
[356079405,1741889381323,-550.0,0.00025232,2]
[356079406,1741889381350,-150.0,0.00025488,2]
[356079407,1741889381582,-154.81,0.00025703,2]
[356079408,1741889381610,-1131.18956888,0.00025921,2]
[356079424,1741889431827,-596.36997141,0.000259,2]
[356079425,1741889431836,-127.77202859,0.00025921,2]
[356079426,1741889431848,-3.93840253,0.00025921,2]
[356079427,1741889431857,-247.53,0.00025926,30]
[356079428,1741889431866,-408.03797746,0.00025926,2]
[356079429,1741889431877,-591.95202254,0.00025926,2]
[356079430,1741889431887,-154.81,0.0002596,2]
[356079431,1741889431896,-500.0,0.00026,9]
[356079432,1741889431906,-596.3699714,0.00026,2]
[356079433,1741889431915,-1000.0,0.000261,9]
[356079434,1741889431924,-478.82463142,0.00026177,120]
[356079435,1741889431939,-1504.52536858,0.00026177,120]
[356079436,1741889431948,-1535.49500175,0.00026177,2]
[356079437,1741889431959,-90.06499825,0.00026177,2]
[356079438,1741889431969,-634.11545742,0.000262,9]
[356079439,1741889431992,-757.8900005,0.000262,9]
[356079440,1741889432003,-107.99454208,0.000262,9]
[356079441,1741889432013,-154.81,0.00026217,2]
[356079442,1741889432022,-247.86993892,0.0002622,2]
[356079443,1741889432034,-199.21006108,0.0002622,2]
[356079444,1741889432043,-292.56643892,0.000263,9]
[356079445,1741889432054,-257.9999999,0.000263,9]
[356079446,1741889432068,-1449.43356118,0.000263,9]
[356079447,1741889432077,-250.0,0.00026319,2]
[356079448,1741889432087,-351.16,0.00026353,120]
[356079449,1741889432096,-168.56,0.00026357,2]
[356079450,1741889432107,-225.95439882,0.00026365,2]
[356079454,1741889432134,-350.11560118,0.00026365,2]
[356079456,1741889432143,-1000.0,0.00026379,2]
[356079458,1741889432152,-1771.45420964,0.000264,9]
[356079491,1741889437758,-728.54579036,0.000264,9]
[356079492,1741889437769,-150.0,0.00026474,2]
[356079493,1741889437779,-154.81,0.00026474,2]
[356079494,1741889437788,-500.0,0.000265,9]
[356079495,1741889437797,-500.0,0.000266,9]
[356079496,1741889437806,-500.0,0.000267,9]
[356079497,1741889437816,-154.81,0.00026731,2]
[356079498,1741889437826,-500.0,0.000268,9]
[356079499,1741889437835,-204.98269598,0.000269,4]
[356079500,1741889437844,-715.0,0.000269,9]
[356079501,1741889437853,-154.81,0.00026988,2]
[356079502,1741889437862,-200.0,0.00027,120]
[356079503,1741889437871,-166.69,0.00027211,2]
[356079504,1741889437881,-200.0,0.000273,3]
[356079505,1741889437890,-145.49151366,0.00027378,2]
[356079506,1741889437905,-354.96848634,0.00027378,2]
[356079507,1741889437915,-161.62938,0.00027384,39]
[356079508,1741889437924,-1742.076,0.00027386,16]
[356079509,1741889437934,-155.55978203,0.00027386,16]
[356079510,1741889437943,-500.0,0.00027386,2]
[356079511,1741889437953,-77685.76635163,0.00027387,3]
[356079512,1741889437964,-17256.3355125,0.00027387,3]
[356079513,1741889437976,-304.49438106,0.00027387,3]
[356079514,1741889437999,-2284.9443584,0.00027387,3]
[356079515,1741889438014,-8795.0,0.00027387,3]
[356079516,1741889438025,-482.44589076,0.00027387,3]
[356079517,1741889438037,-2124.41,0.00027387,3]
[356079518,1741889438048,-761.90648633,0.00027387,3]
[356079519,1741889438059,-4416.17471999,0.00027387,3]
[356079520,1741889438070,-4499.88503799,0.00027387,3]
[356079521,1741889438081,-2804.03870082,0.00027387,3]
[356079522,1741889438093,-90832.59852652,0.00027387,3]
[356079523,1741889438103,-377372.800584,0.00027387,3]
[356079524,1741889438112,-358.96690061,0.00027396,2]
[356079525,1741889438121,-500.0,0.00027396,2]
[356079526,1741889438130,-367.36295584,0.00027396,2]
[356079527,1741889438140,-500.0,0.00027396,2]
[356079528,1741889438149,-500.0,0.00027396,2]
[356079529,1741889438159,-1248.81683572,0.00027396,10]
[356079530,1741889438168,-500.0,0.00027397,18]
[356079531,1741889438177,-500.0,0.00027397,18]
[356079532,1741889438187,-518.05670769,0.00027397,18]
[356079534,1741889438196,-500.0,0.00027397,18]
[356079536,1741889438205,-500.0,0.00027397,18]
[356079538,1741889438214,-500.0,0.00027397,18]
[356079540,1741889438224,-500.0,0.00027397,18]
[356079542,1741889438235,-351.2785901,0.00027397,18]
[356079544,1741889438244,-376.03718335,0.00027397,18]
[356079546,1741889438254,-500.0,0.00027397,18]
[356079548,1741889438264,-500.0,0.00027397,18]
[356079550,1741889438273,-500.0,0.00027397,18]
[356079552,1741889438282,-500.0,0.00027397,18]
[356079553,1741889438291,-500.0,0.00027397,18]
[356079554,1741889438300,-500.0,0.00027397,18]
[356079556,1741889438309,-500.0,0.00027397,18]
[356079557,1741889438318,-500.0,0.00027397,18]
[356079558,1741889438327,-500.0,0.00027397,18]
[356079559,1741889438336,-480.27829193,0.00027397,18]
[356079560,1741889438346,-500.0,0.00027397,18]
[356079561,1741889438355,-512.86026935,0.00027397,18]
[356079562,1741889438363,-500.0,0.00027397,18]
[356079563,1741889438372,-500.0,0.00027397,18]
[356079564,1741889438382,-500.0,0.00027397,18]
[356079565,1741889438391,-500.0,0.00027397,18]
[356079566,1741889438401,-500.0,0.00027397,18]
[356079567,1741889438410,-500.0,0.00027397,18]
[356079568,1741889438419,-500.0,0.00027397,18]
[356079569,1741889438429,-231.39420858,0.00027397,18]
[356079570,1741889438438,-500.0,0.00027397,18]
[356079571,1741889438447,-500.0,0.00027397,18]
[356079572,1741889438457,-500.0,0.00027397,18]
[356079573,1741889438466,-500.0,0.00027397,18]
[356079574,1741889438476,-500.0,0.00027397,18]
[356079575,1741889438486,-158.40570725,0.00027397,18]
[356079576,1741889438497,-547.4966095,0.00027397,18]
[356079577,1741889438507,-500.0,0.00027397,18]
[356079578,1741889438516,-500.0,0.00027397,18]
[356079579,1741889438525,-500.0,0.00027397,18]
[356079580,1741889438534,-500.0,0.00027397,18]
[356079581,1741889438543,-500.0,0.00027397,18]
[356079582,1741889438552,-500.0,0.00027397,18]
[356079583,1741889438562,-500.0,0.00027397,18]
[356079584,1741889438571,-500.0,0.00027397,18]
[356079585,1741889438580,-500.0,0.00027397,18]
[356079586,1741889438589,-500.0,0.00027397,18]
[356079587,1741889438598,-500.0,0.00027397,18]
[356079588,1741889438607,-500.0,0.00027397,18]
[356079589,1741889438617,-500.0,0.00027397,18]
[356079590,1741889438626,-500.0,0.00027397,18]
[356079591,1741889438635,-500.0,0.00027397,18]
[356079592,1741889438644,-500.0,0.00027397,18]
[356079593,1741889438653,-500.0,0.00027397,18]
[356079594,1741889438663,-500.0,0.00027397,18]
[356079595,1741889438672,-500.0,0.00027397,18]
[356079596,1741889438681,-151.0,0.00027397,7]
[356079597,1741889438693,-151.0,0.00027397,7]
[356079598,1741889438702,-279.703884,0.00027397,7]
[356079599,1741889438711,-500.0,0.00027397,18]